bitfinex/quotes_ETHUSD_20251120
["timestamp","ask_amount","ask_price","bid_price","bid_amount"]
[1763626760829,0.002,3036.6,3036.5,16.73142291]
[1763626761031,0.002,3036.6,3036.5,12.83100191]
[1763626761333,0.002,3036.6,3036.5,9.81824491]
[1763626761698,0.002,3036.6,3036.5,5.44345791]
[1763626761898,0.002,3036.6,3036.5,10.40933091]
[1763626762831,0.002,3036.6,3036.5,13.58920791]
[1763626763038,0.002,3036.6,3036.5,12.38920791]
[1763626763931,0.002,3036.6,3036.5,14.63290191]
[1763626764135,0.002,3037.0,3036.9,0.90699264]
[1763626764322,0.002,3037.0,3036.9,18.3618256]
[1763626764521,0.002,3037.0,3036.9,12.4218736]
[1763626764708,0.4648,3037.0,3036.9,12.4218736]
[1763626765034,0.4648,3037.0,3036.9,14.4338736]
[1763626765222,0.4148,3037.0,3036.9,14.4338736]
[1763626766331,0.002,3037.3,3036.9,19.1564761]
[1763626766537,0.002,3037.3,3037.0,5.68642986]
[1763626767436,0.002,3037.3,3037.0,6.16712986]
[1763626768435,0.002,3037.3,3037.1,3.46397564]
[1763626768609,0.4948,3038.3,3037.4,16.935561]
[1763626768814,0.4948,3038.3,3037.1,2.67427973]
[1763626768815,0.1964,3037.5,3037.1,2.67427973]
[1763626769024,0.1964,3037.5,3037.2,2.08984903]
[1763626769334,0.3588,3037.3,3037.2,2.08984903]
[1763626769713,0.8523,3037.3,3037.1,0.90699264]
[1763626769939,0.0049,3037.2,3037.1,0.90699264]
[1763626770119,0.4997,3037.2,3037.1,0.90699264]
[1763626770312,0.4997,3037.2,3037.1,4.1996073]
[1763626770734,0.4997,3037.2,3037.1,0.90699264]
[1763626770934,0.4997,3037.2,3036.6,6.1011001]
[1763626771137,0.4948,3037.2,3036.7,0.90699264]
[1763626771307,0.111,3037.1,3036.7,0.90699264]
[1763626771501,0.5444,3036.8,3036.7,0.90699264]
[1763626771718,0.5444,3036.8,3036.5,3.29423495]
[1763626772017,0.4818,3036.6,3036.5,0.001]
[1763626772518,0.8427,3036.6,3036.5,0.001]
[1763626773138,0.4818,3036.6,3036.5,0.001]
[1763626773666,0.8427,3036.6,3036.5,0.001]
[1763626774761,0.9547,3036.6,3036.5,0.001]
[1763626777266,4.24785682,3036.6,3036.5,0.001]
[1763626777760,0.9547,3036.6,3036.5,0.001]
[1763626778261,0.9047,3036.6,3036.5,0.001]
[1763626779253,4.19785682,3036.6,3036.5,0.001]
[1763626782348,4.08585682,3036.6,3036.5,0.001]
[1763626782571,3.29266051,3037.1,3036.5,0.001]
[1763626782572,0.002,3037.4,3036.5,6.5832001]
[1763626782756,0.111,3037.3,3036.6,6.68416]
[1763626783063,0.111,3037.3,3036.7,6.58609674]
[1763626783273,0.4728,3037.2,3036.7,6.58609674]
[1763626783870,0.112,3037.2,3036.7,7.85491642]
[1763626785765,0.112,3037.2,3036.8,6.434219]
[1763626785968,0.112,3037.2,3036.8,0.4598]
[1763626787472,0.112,3037.2,3037.1,0.4811]
[1763626787669,0.112,3037.2,3036.9,3.2928315]
[1763626788040,0.112,3037.2,3036.9,3.74899662]
[1763626788239,0.5848,3037.2,3036.9,3.74899662]
[1763626788441,0.112,3037.2,3036.9,3.74899662]
[1763626788654,0.4938,3037.0,3036.9,3.74899662]
[1763626789877,0.112,3037.2,3036.9,7.04182812]
[1763626790440,0.5848,3037.2,3036.9,3.74899662]
[1763626791139,0.5848,3037.2,3036.9,3.2928315]
[1763626791140,0.2762,3037.0,3036.9,3.2928315]
[1763626791700,0.2762,3037.0,3036.8,6.58579993]
[1763626791902,0.0047,3036.9,3036.8,3.29286]
[1763626792476,0.5829,3037.2,3036.8,10.85689993]
[1763626792782,0.5829,3037.2,3036.9,1.21257196]
[1763626792989,0.112,3037.2,3036.9,1.21257196]
[1763626793771,0.112,3037.2,3037.0,6.58544616]
[1763626794398,0.112,3037.2,3037.0,3.29272308]
[1763626796406,0.2762,3037.1,3037.0,3.29272308]
[1763626796701,0.2762,3037.1,3037.0,4.3708611]
[1763626797600,0.112,3037.2,3037.0,4.8519611]
[1763626797799,0.112,3037.2,3037.1,0.4811]
[1763626798393,0.112,3037.2,3037.1,7.56371466]
[1763626798603,0.112,3037.2,3037.1,8.02351466]
[1763626798802,0.112,3037.2,3037.1,9.26295224]
[1763626799102,0.112,3037.2,3037.1,8.80315224]
[1763626800817,0.112,3037.2,3037.1,3.79]
[1763626800818,0.9625,3037.2,3037.1,3.79]
[1763626804217,0.002,3037.3,3037.1,0.4811]
[1763626804378,0.002,3037.3,3036.9,6.58564006]
[1763626805488,0.002,3037.2,3037.0,0.4598]
[1763626805683,0.002,3037.2,3037.1,3.322491]
[1763626805880,0.002,3037.2,3037.1,3.492341]
[1763626806080,0.002,3037.2,3037.1,0.9409]
[1763626807113,0.002,3037.2,3037.1,4.23351466]
[1763626807316,0.002,3037.2,3037.1,8.02351466]
[1763626807518,0.002,3037.2,3037.1,13.32844751]
[1763626808487,0.002,3037.2,3037.1,15.30101515]
[1763626808695,0.002,3037.2,3037.1,14.69341515]
[1763626808890,0.002,3037.2,3037.1,14.46924915]
[1763626809226,0.3806,3037.2,3036.7,0.13180722]
[1763626809379,0.5687,3036.8,3036.7,0.13180722]
[1763626809583,0.5687,3036.8,3036.5,0.001]
[1763626809584,1.1534,3036.8,3036.5,0.001]
[1763626809817,0.0047,3036.6,3036.5,0.001]
[1763626810181,0.4913,3036.6,3036.5,0.001]
[1763626811091,3.78445682,3036.6,3036.5,0.001]
[1763626816497,3.82146244,3036.6,3036.5,0.001]
[1763626819625,4.72845508,3036.6,3036.5,0.001]
[1763626820626,4.69144946,3036.6,3036.5,0.001]
[1763626821027,4.20484946,3036.6,3036.5,0.001]
[1763626821344,4.69144946,3036.6,3036.5,0.001]
[1763626821901,4.72845508,3036.6,3036.5,0.001]
[1763626822142,4.69144946,3036.6,3036.5,0.001]
[1763626822707,4.72845508,3036.6,3036.5,0.001]
[1763626823131,0.4913,3036.6,3036.5,0.001]
[1763626823333,0.0047,3036.6,3036.5,0.001]
[1763626823510,3.29785682,3036.6,3036.5,0.001]
[1763626823714,0.0047,3036.6,3036.5,0.001]
[1763626824226,0.112,3036.8,3036.5,0.9378]
[1763626824536,0.112,3036.8,3036.7,0.483]
[1763626824735,0.112,3036.8,3036.7,0.9368]
[1763626825432,0.002,3037.0,3036.7,5.19958]
[1763626825636,0.002,3037.0,3036.9,0.483]
[1763626826004,0.002,3037.0,3036.9,0.9368]
[1763626826200,0.002,3037.0,3036.9,4.2296315]
[1763626826853,0.002,3037.0,3036.9,0.9368]
[1763626827539,0.3584,3037.0,3036.8,3.79]
[1763626827743,0.2099,3036.9,3036.8,3.79]
[1763626827928,0.72310562,3036.9,3036.8,3.79]
[1763626828105,3.29293993,3036.8,3036.5,0.001]
[1763626828301,0.112,3036.7,3036.5,0.001]
[1763626829042,0.3701,3036.6,3036.5,0.001]
[1763626829461,0.112,3036.7,3036.5,0.001]
[1763626830872,0.3712,3036.6,3036.5,0.001]
[1763626831674,0.112,3036.7,3036.5,0.001]
[1763626836086,0.8453,3036.6,3036.5,0.001]
[1763626837253,0.3722,3036.6,3036.5,0.001]
[1763626838154,0.112,3036.7,3036.5,0.4568]
[1763626838355,0.112,3036.7,3036.5,0.001]
[1763626838567,0.111,3036.6,3036.5,0.001]
[1763626838967,0.111,3036.6,3036.5,0.4568]
[1763626841172,0.111,3036.6,3036.5,0.9416]
[1763626841891,0.113,3036.6,3036.5,4.23486527]
[1763626842088,0.113,3036.6,3036.5,4.98768871]
[1763626843774,0.002,3036.6,3036.5,4.98768871]
[1763626844392,0.002,3036.6,3036.5,9.72945771]
[1763626844692,0.002,3036.6,3036.5,13.51945771]
[1763626847067,0.002,3036.6,3036.5,32.43402671]
[1763626847669,0.002,3036.6,3036.5,31.63504671]
[1763626848110,0.002,3036.6,3036.5,24.03436071]
[1763626848693,0.002,3037.0,3036.8,7.887546]
[1763626848890,0.002,3037.0,3036.9,11.9051946]
[1763626849207,0.002,3037.0,3036.9,12.3899946]
[1763626849411,0.002,3037.0,3036.9,36.3016586]
[1763626849592,0.002,3037.0,3036.9,25.20374124]
[1763626850213,0.002,3037.0,3036.9,25.3355185]
[1763626850518,0.002,3037.0,3036.9,30.086245]
[1763626851085,0.002,3037.0,3036.9,29.34583574]
[1763626851513,0.002,3037.0,3036.9,28.99811274]
[1763626852017,0.002,3037.0,3036.9,27.49607974]
[1763626852317,0.002,3037.2,3037.0,0.405504]
[1763626852519,0.002,3037.2,3037.1,24.74711482]
[1763626853217,0.002,3037.2,3037.1,23.91015982]
[1763626853619,0.002,3037.2,3037.1,23.91049282]
[1763626853793,0.002,3037.2,3037.1,15.62732082]
[1763626854510,0.002,3037.2,3037.1,26.61843082]
[1763626855423,0.002,3037.2,3037.1,16.34934482]
[1763626856409,0.002,3037.2,3037.1,15.20348182]
[1763626856608,0.002,3037.2,3037.1,16.26840082]
[1763626856832,0.002,3037.2,3037.1,25.25285542]
[1763626857019,0.002,3037.3,3037.2,6.760493]
[1763626857214,0.002,3037.3,3037.2,10.85066103]
[1763626857616,0.002,3037.3,3037.2,4.49567203]
[1763626857840,0.002,3037.7,3037.3,0.90699264]
[1763626858050,0.1936,3039.0,3037.9,0.405504]
[1763626858207,0.6615,3039.0,3038.9,4.6868493]
[1763626858739,1.035,3039.0,3038.9,4.6868493]
[1763626858941,1.035,3039.0,3038.6,3.29092364]
[1763626859240,0.0037,3038.7,3038.6,3.29092364]
[1763626859437,0.4679,3038.9,3038.6,6.58191291]
[1763626859848,0.1936,3039.0,3038.6,6.58191291]
[1763626860141,0.1936,3039.0,3038.3,3.29129493]
[1763626860142,0.6615,3039.0,3038.3,3.29129493]
[1763626860347,0.6615,3039.0,3038.3,6.58260915]
[1763626860515,0.6615,3039.0,3038.3,8.67666861]
[1763626860715,0.3735,3038.4,3038.3,3.29129493]
[1763626860915,0.4679,3038.9,3038.2,4.19837029]
[1763626861224,0.4679,3038.9,3038.3,0.4558]
[1763626861633,0.4679,3038.9,3038.2,7.48979284]
[1763626861634,0.50490562,3038.9,3038.2,4.11596359]
[1763626861839,0.50490562,3038.9,3037.4,0.1976]
[1763626861840,0.3735,3038.2,3037.4,0.1976]
[1763626862072,0.111,3038.3,3037.5,3.599547]
[1763626862424,0.5789,3038.3,3037.5,3.599547]
[1763626862623,0.5789,3038.3,3037.6,6.58414536]
[1763626862838,0.111,3038.3,3038.2,0.4558]
[1763626863160,0.5875,3038.3,3038.0,6.08968821]
[1763626863456,0.111,3038.9,3038.2,0.4558]
[1763626863662,0.111,3038.9,3038.1,0.4848]
[1763626863824,0.4679,3038.8,3038.1,1.31249664]
[1763626864026,0.111,3038.9,3038.2,0.4848]
[1763626864628,0.111,3038.9,3038.3,6.58262844]
[1763626864932,0.111,3038.9,3038.4,6.08968821]
[1763626865128,0.111,3038.9,3038.8,0.4558]
[1763626866565,0.1935,3039.5,3038.8,7.03028821]
[1763626866899,0.111,3039.5,3039.1,0.4558]
[1763626867743,0.3737,3039.2,3038.8,3.29073242]
[1763626867945,0.37,3038.9,3038.8,3.29073242]
[1763626868331,0.37,3038.9,3038.7,3.29080539]
[1763626868749,0.4706,3038.8,3038.5,0.90699264]
[1763626868945,0.4706,3038.8,3038.5,4.19799547]
[1763626869174,0.4706,3038.8,3038.5,7.48917267]
[1763626869482,0.0037,3038.6,3038.3,0.90699264]
[1763626869684,0.359,3038.5,3038.1,6.58305517]
[1763626869961,0.0048,3038.4,3038.2,0.90699264]
[1763626870278,0.0048,3038.4,3037.7,6.08968821]
[1763626870279,0.0048,3038.4,3037.9,3.29173005]
[1763626870432,0.4956,3038.2,3038.0,0.90699264]
[1763626870666,0.4956,3038.2,3037.8,6.58371188]
[1763626870863,0.4956,3038.2,3037.9,0.90699264]
[1763626871663,0.3435,3038.0,3037.8,0.90699264]
[1763626871997,0.1962,3038.9,3038.1,1.39459264]
[1763626872199,0.4763,3039.1,3038.5,0.4876]
[1763626872762,0.86406035,3039.1,3038.6,6.58197854]
[1763626873096,0.111,3039.3,3038.1,6.08968821]
[1763626873097,0.4763,3039.0,3038.1,6.08968821]
[1763626873297,0.4956,3038.6,3038.0,2.23324]
[1763626874419,0.4956,3038.6,3037.8,1.46949264]
[1763626874420,0.9678,3038.6,3037.8,1.46949264]
[1763626874773,0.4722,3038.5,3037.9,7.4904878]
[1763626874975,0.4722,3038.5,3038.0,0.90699264]
[1763626875387,0.4954,3038.1,3038.0,0.90699264]
[1763626875571,0.4954,3038.1,3038.0,1.66714142]
[1763626876160,0.4954,3038.1,3038.0,0.90699264]
[1763626876362,3.29205562,3039.5,3038.1,4.851623]
[1763626876363,0.4763,3039.2,3038.1,4.851623]
[1763626876565,0.111,3039.1,3038.4,6.57728821]
[1763626876867,0.111,3039.1,3038.5,6.58219516]
[1763626877196,0.5873,3039.1,3038.5,6.58219516]
[1763626877999,0.5873,3039.1,3038.3,3.29131422]
[1763626878227,0.5873,3039.1,3038.3,6.58262844]
[1763626878228,1.01207401,3039.1,3038.3,6.58262844]
[1763626878717,1.01207401,3039.1,3038.2,6.08968821]
[1763626878718,0.4763,3039.0,3038.2,9.3810992]
[1763626878914,0.03700562,3038.9,3038.1,3.29153089]
[1763626879116,0.3627,3038.3,3038.1,6.58306178]
[1763626879293,0.3627,3038.3,3038.1,7.85033678]
[1763626879489,0.03700562,3038.7,3038.1,7.85033678]
[1763626879899,0.51330562,3038.7,3038.1,7.85033678]
[1763626880780,0.4763,3038.7,3038.1,7.85033678]
[1763626881583,0.4763,3038.7,3038.1,11.63833678]
[1763626881783,0.1962,3038.9,3038.1,11.63833678]
[1763626881784,0.1962,3038.9,3038.2,1.49299499]
[1763626882281,0.6725,3038.9,3038.2,1.49299499]
[1763626882833,0.4763,3038.8,3038.2,1.49299499]
[1763626883333,0.4763,3038.8,3038.3,3.29131422]
[1763626883481,0.4763,3038.8,3038.3,6.58262844]
[1763626884516,0.4763,3038.8,3038.3,7.76899078]
[1763626884888,0.3627,3038.4,3038.3,3.29131422]
[1763626886814,0.5862,3038.6,3038.3,6.58262844]
[1763626887211,0.111,3038.6,3038.3,6.58262844]
[1763626888125,0.111,3038.6,3038.5,0.4876]
[1763626889454,0.111,3038.6,3038.3,6.58262844]
[1763626889455,0.4971,3038.6,3038.3,6.58262844]
[1763626890005,0.111,3038.6,3038.3,7.54652158]
[1763626890405,0.111,3038.6,3038.5,0.4646]
[1763626891543,0.111,3038.6,3038.5,3.75569758]
[1763626893149,0.5637,3039.0,3038.5,7.04679516]
[1763626894757,0.5657,3039.0,3038.5,7.04679516]
[1763626895053,0.5657,3039.0,3038.5,3.29109758]
[1763626895054,0.3832,3038.6,3038.5,3.29109758]
[1763626895555,0.8352,3038.6,3038.4,3.29120064]
[1763626895760,0.0045,3038.5,3038.0,3.29260719]
[1763626896060,0.0083,3038.1,3038.0,0.001]
[1763626896428,0.461,3038.1,3038.0,0.001]
[1763626898140,3.75253089,3038.1,3038.0,0.001]
[1763626898560,0.461,3038.1,3038.0,0.001]
[1763626899325,3.75253089,3038.1,3038.0,0.001]
[1763626900766,0.461,3038.1,3038.0,0.001]
[1763626900974,3.75253089,3038.1,3038.0,0.001]
[1763626901381,4.96732057,3038.1,3038.0,0.001]
[1763626901753,5.07832057,3038.1,3038.0,0.001]
[1763626902153,4.77052353,3038.1,3038.0,0.001]
[1763626902477,0.111,3038.1,3038.0,0.001]
[1763626902969,0.4585,3038.1,3038.0,0.001]
[1763626903553,0.9458,3038.1,3038.0,0.001]
[1763626904439,0.4585,3038.1,3038.0,0.001]
[1763626907548,0.111,3038.1,3038.0,0.001]
[1763626907746,0.111,3038.1,3038.0,0.4714]
[1763626908600,0.90699264,3038.5,3038.0,13.61706667]
[1763626908748,0.002,3039.0,3038.5,11.140026]
[1763626908950,0.002,3039.0,3038.9,27.72307307]
[1763626909275,0.002,3039.0,3038.9,21.21587302]
[1763626909464,0.002,3039.0,3038.9,15.39404502]
[1763626909784,0.002,3039.0,3038.9,22.55375771]
[1763626910081,0.002,3039.0,3038.9,20.72544571]
[1763626910253,0.002,3039.0,3038.9,18.36214371]
[1763626910457,0.002,3039.0,3038.9,9.64141702]
[1763626910680,0.002,3039.0,3038.9,13.76697902]
[1763626910977,0.002,3039.0,3038.9,16.12054122]
[1763626911779,0.002,3039.0,3038.9,32.66949408]
[1763626911989,0.002,3039.0,3038.9,30.90146622]
[1763626912380,0.002,3039.5,3039.3,0.405504]
[1763626912554,0.002,3039.5,3039.4,18.05240064]
[1763626912880,0.002,3039.5,3039.4,21.62509532]
[1763626913069,0.002,3039.5,3039.4,9.67376832]
[1763626913244,0.002,3039.5,3039.4,8.48139232]
[1763626913848,0.002,3039.5,3039.4,10.39732232]
[1763626914164,0.002,3039.5,3039.4,7.56919632]
[1763626914578,0.002,3039.5,3039.4,7.75932469]
[1763626914943,0.002,3039.5,3039.4,10.10196269]
[1763626915149,0.002,3039.5,3039.4,8.56716669]
[1763626915349,0.002,3039.5,3039.4,4.66751569]
[1763626915893,0.002,3039.5,3039.4,7.66276269]
[1763626916091,0.002,3039.5,3039.4,9.50826301]
[1763626916401,0.002,3039.5,3039.4,7.23071601]
[1763626917516,0.002,3039.5,3039.4,6.75801601]
[1763626918081,0.3616,3039.5,3039.4,6.28761601]
[1763626918268,0.3616,3039.5,3039.4,3.29012305]
[1763626918469,0.002,3039.5,3039.4,3.29012305]
[1763626918690,0.002,3039.5,3039.4,3.76052305]
[1763626919170,0.3616,3039.5,3039.4,3.29012305]
[1763626919369,0.002,3039.5,3039.4,3.29012305]
[1763626919606,0.002,3039.5,3039.4,4.36788196]
[1763626920404,0.002,3039.5,3039.4,4.83828196]
[1763626921491,0.002,3039.5,3039.4,11.12724919]
[1763626921807,0.002,3039.5,3039.4,11.09434796]
[1763626922311,0.002,3039.5,3039.4,8.41186496]
[1763626922614,0.002,3039.5,3039.4,4.83828196]
[1763626923109,0.3616,3039.5,3039.4,4.36788196]
[1763626923323,0.002,3039.5,3039.4,4.83828196]
[1763626924120,0.002,3039.5,3039.4,5.31098196]
[1763626924529,0.002,3039.5,3039.4,8.67384196]
[1763626924689,0.002,3039.5,3039.4,11.8827296]
[1763626924891,0.002,3039.5,3039.4,9.5117456]
[1763626925122,0.002,3039.5,3039.4,8.8432376]
[1763626925612,0.002,3039.5,3039.4,6.2179746]
[1763626925807,0.002,3039.5,3039.4,10.2629006]
[1763626926021,0.002,3039.5,3039.4,10.0317816]
[1763626926226,0.1913,3040.5,3039.4,10.0317816]
[1763626926227,0.1913,3039.9,3039.6,3.786]
[1763626926521,0.1913,3039.9,3039.8,3.28969011]
[1763626926715,0.68,3039.9,3039.8,3.28969011]
[1763626926918,1.0396,3039.9,3039.8,3.786]
[1763626927693,1.0396,3039.9,3039.0,3.786]
[1763626928023,0.3596,3039.0,3038.9,3.29063822]
[1763626928390,3.59188462,3039.9,3038.9,7.0313026]
[1763626928391,0.4945,3039.5,3038.9,7.0313026]
[1763626929593,0.4945,3039.8,3039.0,2.50186556]
[1763626929899,0.4945,3039.8,3039.1,1.28238325]
[1763626930840,0.4945,3039.8,3039.2,3.29033956]
[1763626931053,0.4945,3039.8,3039.5,0.001]
[1763626931234,0.3043,3039.9,3039.5,0.001]
[1763626931434,0.3539,3039.6,3039.5,0.001]
[1763626931814,0.847,3039.6,3039.5,0.001]
[1763626935135,0.847,3039.6,3039.5,3.787]
[1763626936841,0.3539,3039.6,3039.5,7.0770148]
[1763626937043,0.3043,3039.9,3039.5,12.33624319]
[1763626937044,0.113,3039.9,3039.5,12.33624319]
[1763626937225,0.113,3039.9,3039.8,0.45]
[1763626937539,0.799,3039.9,3039.8,3.786]
[1763626937739,1.1527,3039.9,3039.8,3.786]
[1763626939659,0.4667,3039.9,3039.8,7.07569011]
[1763626940158,0.4667,3039.9,3039.8,3.786]
[1763626940359,1.1513,3039.9,3039.8,3.786]
[1763626944161,1.1513,3039.9,3039.8,7.07569011]
[1763626944553,1.1513,3039.9,3039.8,3.786]
[1763626944953,1.1513,3039.9,3039.8,7.07569011]
[1763626945264,0.6582,3039.9,3039.8,7.07569011]
[1763626945632,0.4667,3039.9,3039.8,7.07569011]
[1763626945830,0.113,3039.9,3039.8,7.07569011]
[1763626946033,0.4681,3039.9,3039.8,7.07569011]
[1763626948831,0.113,3039.9,3039.8,9.00061632]
[1763626949032,0.002,3039.9,3039.8,9.00061632]
[1763626949435,0.002,3039.9,3039.8,9.90760896]
[1763626949831,0.002,3039.9,3039.8,11.07682832]
[1763626950242,0.002,3039.9,3039.8,11.08111304]
[1763626950465,0.002,3039.9,3039.8,23.22337696]
[1763626950669,0.002,3039.9,3039.8,22.84339996]
[1763626951538,0.002,3039.9,3039.8,24.15312396]
[1763626952059,0.002,3039.9,3039.8,24.26412396]
[1763626952577,0.002,3039.9,3039.8,34.78330596]
[1763626952869,0.00804049,3040.7,3040.3,0.405504]
[1763626953072,0.00804049,3040.7,3040.6,6.26241078]
[1763626953377,0.00804049,3040.7,3040.6,10.51651078]
[1763626954050,0.00804049,3040.7,3040.6,13.80533535]
[1763626954374,0.00804049,3040.7,3040.6,14.21083935]
[1763626954594,0.00804049,3040.7,3040.6,16.11402485]
[1763626954945,0.00804049,3040.7,3040.6,16.22502485]
[1763626955571,0.00804049,3040.7,3040.6,16.11402485]
[1763626957782,0.00804049,3040.7,3040.6,26.70125185]
[1763626958078,0.00804049,3040.7,3040.6,24.36089285]
[1763626958279,0.00804049,3040.7,3040.6,22.52276385]
[1763626958481,0.00804049,3040.7,3040.6,20.28452285]
[1763626958647,0.00804049,3040.7,3040.6,19.02292585]
[1763626959651,0.00804049,3040.7,3040.6,32.21905685]
[1763626960151,1.3765,3043.1,3041.2,0.405504]
[1763626960378,0.4611,3042.6,3041.6,6.57548658]
[1763626960581,0.03700562,3042.5,3041.6,3.28774329]
[1763626960784,0.399,3041.7,3041.5,3.28782285]
[1763626961623,0.4611,3042.6,3041.7,0.405504]
[1763626961819,0.4611,3042.5,3041.9,4.67711814]
[1763626962337,0.4611,3042.5,3041.5,9.86352561]
[1763626962338,0.399,3042.0,3040.9,6.17672011]
[1763626962545,0.1898,3041.9,3041.1,2.734496]
[1763626962890,0.68790562,3041.9,3041.1,0.90699264]
[1763626963402,0.4611,3041.8,3041.1,0.90699264]
[1763626963938,0.399,3041.2,3041.1,0.90699264]
[1763626964394,0.399,3041.2,3041.1,4.19527648]
[1763626964621,0.399,3041.2,3041.1,5.48942664]
[1763626966023,0.399,3041.2,3041.1,3.28828384]
[1763626966231,0.8595,3041.2,3040.8,6.57721652]
[1763626966468,0.395,3040.9,3040.6,6.57764914]
[1763626966655,0.395,3040.9,3040.7,0.90699264]
[1763626966968,0.395,3040.9,3040.7,2.45205807]
[1763626967373,0.4611,3041.4,3040.8,5.15011814]
[1763626967672,0.5721,3041.5,3041.0,0.473]
[1763626968481,0.5721,3041.5,3041.1,6.57656768]
[1763626968682,0.5721,3041.5,3041.1,3.28828384]
[1763626968902,0.399,3041.2,3041.1,3.28828384]
[1763626969100,0.5721,3041.5,3041.1,3.28828384]
[1763626969276,0.002,3041.2,3041.1,3.28828384]
[1763626969682,0.002,3041.2,3041.1,3.76128384]
[1763626970767,0.002,3041.2,3041.1,5.11695099]
[1763626971498,0.002,3041.2,3041.1,4.46625099]
[1763626971687,0.002,3041.2,3041.1,3.99325099]
[1763626972091,0.002,3041.2,3041.1,4.46625099]
[1763626972798,0.401,3041.2,3041.1,3.99325099]
[1763626973015,0.401,3041.2,3041.1,3.28828384]
[1763626974718,0.002,3041.2,3040.9,6.57700022]
[1763626974872,0.002,3041.2,3041.1,0.473]
[1763626975893,0.002,3041.2,3040.9,6.57700022]
[1763626975894,0.401,3041.2,3040.9,6.57700022]
[1763626976110,0.002,3041.2,3041.1,0.473]
[1763626976622,0.002,3041.2,3040.9,7.03980022]
[1763626976920,0.002,3041.2,3040.9,8.16333789]
[1763626977220,0.002,3041.2,3041.1,0.473]
[1763626977815,0.002,3041.2,3040.9,8.16333789]
[1763626977816,0.401,3041.2,3040.9,7.70053789]
[1763626978000,0.0046,3041.0,3040.6,4.19581721]
[1763626978211,0.0111,3040.7,3040.6,3.28882457]
[1763626978793,0.0111,3040.7,3040.3,6.57829818]
[1763626979030,0.0111,3040.7,3040.4,0.90699264]
[1763626979031,0.4611,3040.7,3040.4,0.90699264]
[1763626979232,0.1858,3041.1,3040.5,0.74852908]
[1763626979531,0.1858,3041.1,3040.4,0.90699264]
[1763626979532,0.4021,3040.5,3040.4,0.90699264]
[1763626979694,0.4021,3040.5,3040.3,0.90699264]
[1763626980415,0.4611,3040.7,3040.3,0.90699264]
[1763626980600,0.4611,3040.7,3040.3,2.07354076]
[1763626980800,0.6469,3041.1,3040.5,0.90699264]
[1763626980991,0.4611,3041.0,3040.5,0.90699264]
[1763626981190,0.4021,3040.6,3040.5,0.90699264]
[1763626981395,0.4021,3040.6,3040.3,0.90699264]
[1763626981595,0.004,3040.4,3040.3,4.19614173]
[1763626981813,0.004,3040.4,3040.2,1.16654812]
[1763626982007,0.5721,3040.5,3039.5,1.16754812]
[1763626982008,0.8593,3040.3,3039.5,1.16754812]
[1763626982240,0.3943,3040.0,3039.6,3.28984487]
[1763626982534,0.3943,3040.0,3039.5,0.001]
[1763626982698,0.8554,3040.0,3039.5,0.001]
[1763626983299,0.9664,3040.0,3039.5,0.001]
[1763626984058,4.25587368,3040.0,3039.5,0.001]
[1763626984665,7.54534736,3040.0,3039.5,0.001]
[1763626984854,3.48750656,3039.6,3039.5,0.001]
[1763626985039,0.1976,3039.6,3039.5,0.001]
[1763626985240,1.00744336,3039.6,3039.5,0.001]
[1763626986135,0.6587,3039.6,3039.5,0.001]
[1763626986822,3.94860656,3039.6,3039.5,0.001]
[1763626987027,0.6587,3039.6,3039.5,0.001]
[1763626989471,8.63217189,3039.6,3039.5,0.001]
[1763626989667,8.63217189,3039.6,3039.1,0.001]
[1763626989668,0.3992,3039.3,3039.1,0.001]
[1763626989843,5.71115797,3039.2,3039.1,0.001]
[1763626990245,5.71115797,3039.2,3038.0,0.001]
[1763626990246,1.31249664,3039.1,3038.0,3.2926378]
[1763626990568,1.31249664,3039.1,3038.0,0.001]
[1763626990569,0.3953,3038.1,3038.0,0.001]
[1763626990732,0.5063,3038.1,3038.0,3.29263923]
[1763626991129,0.5063,3038.1,3038.0,0.001]
[1763626991463,0.9735,3038.1,3038.0,0.001]
[1763626992233,0.5063,3038.1,3038.0,0.001]
[1763626992870,0.9735,3038.1,3038.0,0.001]
[1763626993275,4.26503089,3038.1,3038.0,0.001]
[1763626994876,0.9735,3038.1,3038.0,0.001]
[1763626995045,0.8625,3038.1,3038.0,0.001]
[1763626995247,0.9735,3038.1,3038.0,0.001]
[1763626996469,0.5063,3038.1,3038.0,0.001]
[1763626997270,0.9735,3038.1,3038.0,0.001]
[1763626997755,4.26503089,3038.1,3038.0,0.001]
[1763626998357,0.9735,3038.1,3038.0,0.001]
[1763626998600,4.26503089,3038.1,3038.0,0.001]
[1763627001183,3.79783089,3038.1,3038.0,0.001]
[1763627001394,3.79783089,3038.1,3037.3,0.001]
[1763627001395,0.405504,3037.4,3037.3,0.001]
[1763627003180,1.12007118,3037.4,3037.3,0.001]
[1763627003507,5.31935327,3037.4,3037.3,0.001]
[1763627003717,5.66234531,3037.4,3037.3,0.001]
[1763627006425,5.66434531,3037.4,3037.3,0.001]
[1763627010346,5.25884131,3037.4,3037.3,0.001]
[1763627010505,5.12697413,3037.4,3037.3,0.001]
[1763627010704,1.36748468,3037.4,3037.3,0.001]
[1763627010906,1.02449264,3037.4,3037.3,0.001]
[1763627011611,4.31678209,3037.4,3037.3,0.001]
[1763627012000,3.40978945,3037.4,3037.3,0.001]
[1763627012447,0.1175,3037.4,3037.3,0.001]
[1763627015257,3.40978945,3037.4,3037.3,0.001]
[1763627015646,0.113,3037.4,3037.3,0.4608]
[1763627015814,0.113,3037.4,3037.3,0.9396]